bitfinex-derivatives/quotes_SOLF0:USTF0_20241127
["timestamp","ask_amount","ask_price","bid_price","bid_amount"]
[1732718166504,2.1013,237.89,237.84,60.75234]
[1732718166809,10.18790311,237.88,237.84,60.75234]
[1732718167297,10.18790311,237.91,237.84,60.75234]
[1732718167500,8.53905615,237.9,237.84,60.75234]
[1732718167693,10.18790311,237.91,237.84,60.75234]
[1732718167902,8.53902948,237.9,237.84,60.75234]
[1732718168099,2.1013,237.88,237.84,62.85404]
[1732718168800,2.1013,237.88,237.85,2.1016]
[1732718169004,2.1012,237.89,237.85,2.1016]
[1732718169403,10.18790311,237.88,237.84,60.75234]
[1732718169903,10.18790311,237.91,237.88,2.1013]
[1732718170104,2.101,237.92,237.84,60.75234]
[1732718170304,10.18790311,237.94,237.84,60.75234]
[1732718170603,2.1009,237.93,237.87,2.1014]
[1732718170797,10.18790311,237.94,237.84,60.75234]
[1732718171104,10.18790311,237.94,237.91,2.1011]
[1732718171305,10.18790311,237.97,237.88,2.38]
[1732718171509,10.18790311,238.0,237.88,2.38]
[1732718171805,10.18790311,238.0,237.89,2.0227]
[1732718172110,10.18790311,237.97,237.92,2.1009]
[1732718172306,10.18790311,237.94,237.84,60.75234]
[1732718172803,2.1012,237.9,237.84,62.85404]
[1732718172999,10.18790311,237.88,237.84,60.75234]
[1732718173403,2.1015,237.87,237.84,60.75234]
[1732718173811,10.18790311,237.88,237.84,60.75234]
[1732718174499,12.28950311,237.85,237.84,60.75234]
[1732718175004,2.1019,237.82,237.73,2.084]
[1732718175206,2.1019,237.82,237.77,2.1023]
[1732718175410,2.38,237.91,237.73,2.084]
[1732718175709,10.18790311,237.88,237.74,2.61227406]
[1732718176012,2.102,237.81,237.73,2.084]
[1732718176210,10.18790311,237.79,237.7,2.0444]
[1732718176406,10.18790311,237.73,237.66,2.1032]
[1732718176714,2.1029,237.71,237.65,2.146]
[1732718177005,10.18790311,237.67,237.59,46.6049807]
[1732718177406,10.18790311,237.67,237.6,2.1038]
[1732718177602,10.18790311,237.72,237.57,12.56790311]
[1732718177802,101.0,237.82,237.63,10.18790311]
[1732718177803,2.38,237.79,237.63,10.18790311]
[1732718178003,8.52628219,237.78,237.64,6.5704]
[1732718178312,12.56790311,237.79,237.64,6.5704]
[1732718178610,10.18790311,237.79,237.69,2.103]
[1732718179012,2.1023,237.77,237.69,2.103]
[1732718179211,10.18790311,237.79,237.69,2.103]
[1732718179616,2.1024,237.76,237.7,2.1029]
[1732718179912,10.18790311,237.79,237.66,10.18790311]
[1732718180109,2.38,237.8,237.66,10.18790311]
[1732718180307,10.18790311,237.82,237.66,10.18790311]
[1732718180708,10.18790311,237.79,237.64,8.6842]
[1732718181508,2.38,237.78,237.68,2.1031]
[1732718182111,2.1025,237.75,237.67,2.1032]
[1732718182306,2.38,237.78,237.65,2.38]
[1732718182506,10.18790311,237.79,237.66,10.18790311]
[1732718182709,12.56790311,237.82,237.72,2.1027]
[1732718182906,12.56790311,237.82,237.66,10.18790311]
[1732718183110,2.1021,237.8,237.66,10.18790311]
[1732718183308,12.56790311,237.82,237.71,2.1028]
[1732718183616,12.56790311,237.82,237.66,10.18790311]
[1732718184315,10.18790311,237.79,237.69,2.1029]
[1732718184513,10.18790311,237.79,237.65,2.38]
[1732718184913,12.56790311,237.82,237.7,2.1029]
[1732718185122,12.56790311,237.82,237.66,10.18790311]
[1732718185615,10.18790311,237.79,237.66,10.18790311]
[1732718185808,10.18790311,237.76,237.65,2.38]
[1732718186007,10.18790311,237.76,237.64,6.3042]
[1732718186212,10.18790311,237.73,237.64,2.146]
[1732718186720,10.18790311,237.73,237.6,2.38]
[1732718187018,2.103,237.69,237.6,2.38]
[1732718187210,10.18790311,237.73,237.6,2.38]
[1732718187518,4.52657619,237.76,237.6,12.56790311]
[1732718187519,12.56790311,237.76,237.6,12.56790311]
[1732718188317,10.18790311,237.73,237.63,2.1035]
[1732718188918,2.103,237.69,237.62,2.1036]
[1732718189415,2.1032,237.68,237.6,4.4838]
[1732718189610,2.38,237.76,237.6,2.38]
[1732718189611,10.18790311,237.7,237.6,2.38]
[1732718189813,2.38,237.69,237.58,2.45636]
[1732718190014,10.18790311,237.67,237.58,2.45636]
[1732718190616,2.38,237.69,237.58,0.42146]
[1732718190617,10.18790311,237.64,237.58,0.42146]
[1732718190818,10.18790311,237.61,237.58,0.42146]
[1732718191217,2.1039,237.59,237.58,0.42146]
[1732718191613,10.18790311,237.61,237.44,14.22610311]
[1732718191820,2.104,237.58,237.44,16.25420311]
[1732718192120,10.18790311,237.52,237.41,2.60954271]
[1732718192324,3.1,237.55,237.41,2.60954271]
[1732718192521,10.18790311,237.49,237.41,2.60954271]
[1732718193222,10.18790311,237.45,237.41,2.60954271]
[1732718193422,10.18790311,237.48,237.41,2.60954271]
[1732718193813,10.18790311,237.51,237.41,2.60954271]
[1732718194216,10.18790311,237.48,237.41,2.60954271]
[1732718194521,16.35263927,237.49,237.41,2.60954271]
[1732718194721,16.35263927,237.49,237.39,4.71514271]
[1732718194722,18.45743927,237.49,237.39,4.71514271]
[1732718196022,2.1049,237.48,237.39,2.60954271]
[1732718196318,16.35263927,237.49,237.37,2.1058]
[1732718196921,16.35263927,237.45,237.33,1.84640047]
[1732718197126,16.35263927,237.41,237.33,1.84640047]
[1732718197717,16.35263927,237.37,237.33,1.84640047]
[1732718197922,2.106,237.36,237.33,1.84640047]
[1732718198224,19.45263927,237.37,237.22,2.1383]
[1732718198418,16.35263927,237.33,237.22,2.1383]
[1732718199022,16.35263927,237.33,237.24,2.107]
[1732718199227,16.35263927,237.33,237.22,2.1383]
[1732718199523,2.1063,237.32,237.23,2.1071]
[1732718199728,2.1063,237.32,237.22,2.1383]
[1732718199729,16.35263927,237.33,237.18,2.0341]
[1732718200330,18.34513927,237.36,237.18,2.0341]
[1732718200728,16.35263927,237.36,237.18,2.0341]
[1732718200924,3.1,237.38,237.28,2.1066]
[1732718201723,16.35263927,237.36,237.18,2.0341]
[1732718203029,16.35263927,237.32,237.18,2.0341]
[1732718203226,3.1,237.31,237.18,2.0341]
[1732718204035,2.0484,237.35,237.18,2.0341]
[1732718204228,3.1,237.39,237.21,16.35263927]
[1732718204433,3.1,237.39,237.27,2.1067]
[1732718205039,2.1058,237.38,237.21,19.45263927]
[1732718205341,3.1,237.39,237.29,2.1065]
[1732718205839,3.1,237.39,237.21,19.45263927]
[1732718206039,3.1,237.39,237.22,0.77434764]
[1732718206436,16.35263927,237.4,237.21,19.45263927]
[1732718206739,19.45263927,237.48,237.25,16.35263927]
[1732718206936,16.35263927,237.48,237.29,16.35263927]
[1732718207136,16.35263927,237.48,237.3,7.2208]
[1732718208540,16.35263927,237.48,237.3,4.1208]
[1732718208846,16.35263927,237.44,237.31,3.1]
[1732718209443,16.35263927,237.44,237.33,2.1062]
[1732718210041,16.35263927,237.44,237.31,5.2063]
[1732718210245,16.35263927,237.44,237.31,3.1]
[1732718210947,2.1056,237.4,237.31,5.2063]
[1732718211142,2.1056,237.4,237.31,3.1]
[1732718211549,2.1055,237.41,237.32,2.1062]
[1732718211744,16.35263927,237.44,237.32,2.1062]
[1732718212147,16.35263927,237.4,237.26,5.057]
[1732718212444,16.35263927,237.36,237.26,5.057]
[1732718212748,2.1065,237.3,237.22,2.88141057]
[1732718212949,16.35263927,237.32,237.22,0.77431057]
[1732718213137,1.9658,237.35,237.22,0.77431057]
[1732718213342,16.35263927,237.4,237.22,0.77431057]
[1732718213538,1.9658,237.44,237.24,16.35263927]
[1732718213741,1.9658,237.44,237.25,4.1691]
[1732718213945,1.9658,237.44,237.26,3.1]
[1732718214236,16.35263927,237.42,237.26,3.1]
[1732718214443,16.35263927,237.42,237.33,2.1062]
[1732718214644,16.35263927,237.42,237.27,2.0569]
[1732718214949,2.1054,237.42,237.34,2.1061]
[1732718215347,1.9643,237.45,237.27,2.0569]
[1732718215548,4.0695,237.45,237.36,2.1059]
[1732718215750,18.43793927,237.5,237.35,3.34]
[1732718215945,2.0402,237.53,237.35,3.34]
[1732718216145,16.35263927,237.55,237.36,4.1376]
[1732718216440,16.35263927,237.55,237.37,2.0664]
[1732718216640,16.35263927,237.55,237.48,2.1048]
[1732718216847,16.35263927,237.55,237.38,16.35263927]
[1732718217149,18.45693927,237.55,237.46,2.105]
[1732718217352,16.35263927,237.55,237.38,16.35263927]
[1732718217546,27.63551984,237.58,237.39,0.77380231]
[1732718217946,2.1043,237.55,237.45,2.1051]
[1732718218146,2.1043,237.55,237.38,16.35263927]
[1732718218147,27.63551984,237.58,237.43,3.34]
[1732718218547,2.1041,237.57,237.49,2.1047]
[1732718218854,27.63551984,237.58,237.43,3.34]
[1732718219043,29.73951984,237.58,237.47,2.1049]
[1732718219248,27.63551984,237.58,237.43,3.34]
[1732718220248,2.1041,237.57,237.47,2.1049]
[1732718220451,2.1041,237.57,237.43,3.34]
[1732718220452,27.63551984,237.58,237.43,3.34]
[1732718221046,25.55021984,237.58,237.43,3.34]
[1732718221254,19.69263927,237.63,237.43,3.34]
[1732718221451,16.35263927,237.63,237.53,2.1044]
[1732718221752,16.35263927,237.63,237.46,16.35263927]
[1732718221946,2.1037,237.61,237.47,6.071]
[1732718222147,16.35263927,237.63,237.47,11.89662258]
[1732718222342,16.35263927,237.63,237.47,6.071]
[1732718222551,2.1039,237.59,237.52,2.1045]
[1732718222950,16.35263927,237.63,237.48,3.34]
[1732718223349,4.1118,237.64,237.48,3.34]
[1732718223350,16.35263927,237.59,237.48,3.34]
[1732718223554,2.1043,237.55,237.48,2.1048]
[1732718224251,16.35263927,237.59,237.47,1.9695]
[1732718224443,16.35263927,237.63,237.47,1.9695]
[1732718224849,2.0402,237.64,237.48,4.9681918]
[1732718225049,2.1439,237.66,237.49,2.0188]
[1732718225251,2.1439,237.66,237.5,5.3112]
[1732718225453,16.35263927,237.68,237.5,5.3112]
[1732718225854,2.1035,237.63,237.5,5.3112]
[1732718226048,4.0832,237.7,237.5,1.9712]
[1732718226049,16.35263927,237.64,237.5,1.9712]
[1732718226248,16.35263927,237.64,237.51,3.34]
[1732718227753,16.35263927,237.68,237.51,3.34]
[1732718229262,4.0832,237.7,237.53,16.35263927]
[1732718229457,16.35263927,237.72,237.58,2.1039]
[1732718229662,16.35263927,237.72,237.59,3.34]
[1732718229857,16.35263927,237.65,237.52,2.0579]
[1732718230063,2.1037,237.61,237.54,2.1043]
[1732718230459,2.1037,237.61,237.52,2.0579]
[1732718230658,16.35263927,237.65,237.52,2.0579]
[1732718231057,16.35263927,237.65,237.53,2.1043]
[1732718231453,16.35263927,237.65,237.51,3.34]
[1732718231662,2.1037,237.61,237.51,3.34]
[1732718232152,16.35263927,237.65,237.51,3.34]
[1732718232361,2.1036,237.62,237.55,2.1042]
[1732718232859,2.1035,237.64,237.57,2.1041]
[1732718233064,1.984,237.71,237.51,3.34]
[1732718233464,2.1032,237.67,237.61,2.1037]
[1732718234264,2.1032,237.67,237.59,2.1038]
[1732718234654,2.1032,237.67,237.51,19.69263927]
[1732718234860,2.1031,237.69,237.63,2.1035]
[1732718235059,1.984,237.71,237.59,3.34]
[1732718235263,1.984,237.71,237.6,3.34]
[1732718235462,16.35263927,237.76,237.6,3.34]
[1732718235864,16.35263927,237.76,237.61,1.9563]
[1732718236061,20.32633927,237.8,237.61,1.9563]
[1732718236263,18.37713927,237.8,237.62,4.1678]
[1732718236460,2.1022,237.78,237.71,2.1028]
[1732718237263,16.35263927,237.76,237.67,3.34]
[1732718237767,18.37713927,237.8,237.67,3.34]
[1732718238370,16.35263927,237.76,237.67,3.34]
[1732718238867,2.1027,237.72,237.67,3.34]
[1732718239064,16.35263927,237.76,237.67,3.34]
[1732718240064,2.1027,237.73,237.67,3.34]
[1732718240262,16.35263927,237.76,237.67,3.34]
[1732718240668,2.1026,237.74,237.67,3.34]
[1732718240871,18.37713927,237.8,237.67,3.34]
[1732718241272,2.1025,237.75,237.69,2.103]
[1732718241974,2.1027,237.73,237.62,4.1678]
[1732718242173,16.35263927,237.76,237.62,7.5078]
[1732718242767,2.1025,237.75,237.68,2.1031]
[1732718243168,2.1025,237.75,237.62,7.5078]
[1732718243367,18.37713927,237.8,237.62,7.5078]
[1732718243867,18.37713927,237.8,237.73,2.1026]
[1732718244069,2.1077,237.83,237.69,3.2]
[1732718244270,16.35263927,237.88,237.7,3.2]
[1732718244469,16.35263927,237.88,237.71,2.1109]
[1732718244870,2.1017,237.84,237.76,2.1024]
[1732718245069,16.35263927,237.88,237.71,2.1109]
[1732718245472,16.35263927,237.88,237.78,2.1022]
[1732718245776,16.35263927,237.88,237.72,3.2]
[1732718246171,16.35263927,237.84,237.72,3.2]
[1732718247177,16.35263927,237.88,237.72,3.2]
[1732718247678,2.1017,237.85,237.78,2.1021]
[1732718248274,2.1017,237.85,237.8,2.102]
[1732718248469,2.1017,237.85,237.72,3.2]
[1732718248470,2.1017,237.84,237.72,3.2]
[1732718249377,2.1019,237.82,237.72,3.2]
[1732718249577,16.35263927,237.88,237.72,3.2]
[1732718250676,2.1018,237.83,237.77,2.1023]
[1732718251575,16.35263927,237.84,237.72,3.2]
[1732718252177,16.35263927,237.8,237.67,3.2]
[1732718252878,2.1022,237.79,237.72,2.1027]
[1732718253381,16.35263927,237.8,237.72,2.1027]
[1732718254171,2.1023,237.78,237.73,2.1026]
[1732718254379,2.1023,237.78,237.67,3.2]
[1732718254380,16.35263927,237.8,237.67,3.2]
[1732718254572,5.154,237.83,237.67,3.2]
[1732718254775,1.954,237.83,237.75,2.1024]
[1732718255877,1.954,237.83,237.67,3.2]
[1732718256279,2.1018,237.83,237.76,2.1023]
[1732718256574,16.35263927,237.84,237.67,8.97906964]
[1732718256778,16.35263927,237.84,237.67,3.2]
[1732718256978,2.1019,237.82,237.75,2.1025]
[1732718257179,16.35263927,237.84,237.67,3.2]
[1732718257583,2.102,237.8,237.74,2.1025]
[1732718257879,16.35263927,237.84,237.67,3.2]
[1732718258082,16.35263927,237.84,237.68,3.2]
[1732718258780,18.45433927,237.84,237.72,2.1027]
[1732718259078,16.35263927,237.84,237.68,3.2]
[1732718259273,16.35263927,237.84,237.69,2.59391657]
[1732718259478,16.35263927,237.84,237.68,3.2]
[1732718259680,16.35263927,237.84,237.69,2.59394212]
[1732718259982,18.45443927,237.84,237.68,8.97906964]
[1732718260173,16.35263927,237.88,237.69,2.59376604]
[1732718260374,16.35263927,237.88,237.7,13.35610286]
[1732718260585,16.35263927,237.88,237.71,2.59554718]
[1732718260774,16.35263927,237.88,237.72,2.59554718]
[1732718260981,2.1016,237.85,237.79,2.1021]
[1732718261478,16.35263927,237.88,237.76,3.2]
[1732718261681,2.1014,237.87,237.81,2.1019]
[1732718261878,16.35263927,237.88,237.76,3.2]
[1732718262078,2.0691,237.9,237.84,2.1016]
[1732718262079,2.1012,237.9,237.84,2.1016]
[1732718262277,16.35263927,237.92,237.77,2.0029]
[1732718262882,2.1011,237.91,237.77,2.0029]
[1732718263076,16.35263927,237.92,237.77,2.0029]
[1732718263277,16.35263927,237.92,237.84,2.1016]
[1732718263278,2.1011,237.91,237.84,2.1016]
[1732718263475,2.1011,237.91,237.77,2.0029]
[1732718263887,2.1011,237.91,237.85,2.1016]
[1732718264385,16.35263927,237.92,237.77,2.0029]
[1732718265083,18.45363927,237.92,237.85,2.1015]
[1732718265485,16.35263927,237.92,237.82,2.1018]
[1732718266082,2.1014,237.87,237.82,2.1018]
[1732718266286,16.35263927,237.92,237.82,2.1018]
[1732718266477,16.35263927,237.92,237.84,2.1016]
[1732718266678,2.1011,237.91,237.77,2.0029]
[1732718266884,2.1011,237.91,237.84,2.1016]
[1732718267285,2.1011,237.9,237.84,2.1016]
[1732718267481,2.1011,237.9,237.85,2.1016]
[1732718268093,16.35263927,237.92,237.77,2.0029]
[1732718268283,16.35263927,237.92,237.78,2.59653788]
[1732718268482,16.35263927,237.92,237.78,3.0]
[1732718268686,10.18529562,237.87,237.78,3.0]
[1732718268889,10.18529562,237.87,237.8,2.102]
[1732718269080,10.18529562,237.87,237.78,3.0]
[1732718269891,10.18529562,237.9,237.78,3.0]
[1732718270079,10.18529562,237.93,237.78,3.0]
[1732718270386,2.1011,237.91,237.78,3.0]
[1732718270977,2.1012,237.9,237.84,2.1016]
[1732718271385,10.18529562,237.9,237.78,3.0]
[1732718271782,12.28649562,237.9,237.78,3.0]
[1732718272085,10.18529562,237.9,237.78,3.0]
[1732718272286,2.1015,237.87,237.78,3.0]
[1732718272488,10.18529562,237.9,237.78,3.0]
[1732718272687,10.18529562,237.9,237.82,2.1018]
[1732718272889,10.18529562,237.9,237.78,3.0]
[1732718273294,2.1014,237.87,237.78,3.0]
[1732718273993,10.18529562,237.87,237.78,3.0]
[1732718274794,10.18529562,237.87,237.75,3.0]
[1732718274995,10.18529562,237.84,237.75,3.0]
[1732718275293,2.1018,237.83,237.77,2.1022]
[1732718275493,10.18529562,237.84,237.77,2.1022]
[1732718276092,5.9946,237.89,237.72,4.0991]
[1732718276093,10.18529562,237.81,237.72,1.9802]
[1732718276393,10.18529562,237.81,237.7,2.1201]
[1732718276594,10.18529562,237.81,237.76,2.1023]
[1732718276795,10.18529562,237.84,237.7,2.1201]
[1732718277191,16.17989562,237.89,237.73,10.18529562]
[1732718277391,270.7602838,238.19,237.88,10.18529562]
[1732718277592,351.0621533,238.38,238.14,10.18529562]
[1732718277789,5.71907451,238.26,238.19,10.18529562]
[1732718278099,9.07976449,238.18,238.15,5.12]
[1732718278300,325.0939838,238.75,238.17,32.40157586]
[1732718278492,12.61,238.67,238.36,16.20078793]
[1732718278698,0.63276375,238.66,238.42,16.20078793]
[1732718278893,12.61,238.65,238.47,16.20078793]
[1732718279095,0.63276375,238.69,238.47,22.20078793]
[1732718279294,0.63276375,238.65,238.52,16.20078793]
[1732718279498,0.63226246,238.64,238.53,2.0956]
[1732718279695,0.63226246,238.64,238.57,16.20078793]
[1732718279896,8.35707577,238.71,238.59,2.0951]
[1732718280102,2.0935,238.78,238.59,6.0]
[1732718280302,3.971,238.86,238.62,16.20078793]
[1732718280608,0.63203906,238.7,238.69,2.0942]
[1732718281099,0.63203906,238.85,238.77,2.0935]
[1732718281304,0.63203906,238.85,238.71,26.26827077]
[1732718281804,2.0921,238.94,238.71,26.26827077]
[1732718281996,26.26827077,238.98,238.68,26.26827077]
[1732718282196,26.26827077,238.93,238.68,26.26827077]
[1732718282397,26.26827077,238.93,238.79,2.0933]
[1732718282705,26.26827077,238.93,238.56,26.26827077]
[1732718282706,26.26827077,238.88,238.63,26.26827077]
[1732718282898,26.26827077,238.88,238.65,1.18762164]
[1732718283199,26.26827077,238.88,238.66,3.77180474]
[1732718283401,26.26827077,238.88,238.64,2.23534518]
[1732718283402,26.26827077,238.88,238.64,1.18762164]
[1732718283605,26.26827077,238.88,238.65,3.14280901]
[1732718283807,26.26827077,238.88,238.64,1.18762164]
[1732718284008,26.26827077,238.92,238.68,26.26827077]
[1732718284310,26.26827077,238.92,238.66,26.26827077]
[1732718284600,26.26827077,238.92,238.76,2.0936]
[1732718285104,26.26827077,238.92,238.77,2.0935]
[1732718285502,26.26827077,238.92,238.79,2.0932]
[1732718285704,26.26827077,238.92,238.8,1.04705738]
[1732718286001,26.26827077,238.92,238.7,26.26827077]
[1732718286401,26.26827077,238.92,238.66,26.26827077]
[1732718286610,26.26827077,238.88,238.78,1.67533642]
[1732718287206,26.26827077,238.92,238.78,1.67533642]
[1732718287407,1.56734,239.0,238.84,2.0928]
[1732718287608,26.26827077,238.93,238.84,2.0928]
[1732718287804,26.26827077,238.93,238.82,2.093]
[1732718288009,26.26827077,238.89,238.78,1.67533642]
[1732718288507,26.26827077,238.92,238.78,1.67533642]
[1732718290312,26.26827077,238.92,238.8,2.0932]
[1732718290707,2.0918,238.97,238.78,1.67533642]
[1732718290708,26.26827077,238.96,238.78,1.67533642]
[1732718291210,26.26827077,238.96,238.82,2.093]
[1732718291413,26.26827077,238.96,238.74,26.26827077]
[1732718291710,26.26827077,238.92,238.7,26.26827077]
[1732718292207,26.26827077,238.88,238.7,26.26827077]
[1732718292413,26.26827077,238.84,238.65,29.72597596]
[1732718292607,26.26827077,238.8,238.65,29.72597596]
[1732718292803,26.26827077,238.8,238.49,32.68]
[1732718293309,6.2365,238.83,238.69,2.0941]
[1732718293511,4.1435,238.83,238.65,26.26827077]
[1732718293709,4.1435,238.83,238.61,26.26827077]
[1732718293912,4.1435,238.83,238.65,26.26827077]
[1732718294408,2.0938,238.74,238.62,2.0948]
[1732718294714,4.1435,238.83,238.62,2.0948]
[1732718294919,2.0938,238.74,238.61,26.26827077]
[1732718295110,4.1435,238.83,238.61,26.26827077]
[1732718295808,4.1435,238.83,238.65,26.26827077]
[1732718296213,4.1435,238.83,238.69,26.26827077]
[1732718296405,4.1435,238.83,238.65,26.26827077]
[1732718297009,26.26827077,238.81,238.55,29.74180279]
[1732718297309,4.1435,238.83,238.63,26.26827077]
[1732718297612,2.094,238.72,238.59,28.36327077]
[1732718297806,26.26827077,238.81,238.59,26.26827077]
[1732718298206,2.0939,238.73,238.61,2.0948]
[1732718298413,26.26827077,238.81,238.59,26.26827077]
[1732718299107,4.1435,238.83,238.59,26.26827077]
[1732718299313,2.0938,238.74,238.64,2.0946]
[1732718299516,4.1435,238.83,238.64,2.0946]
[1732718299710,4.1435,238.83,238.59,26.26827077]
[1732718300218,26.26827077,238.81,238.58,26.26827077]
[1732718300415,2.0941,238.71,238.61,2.0948]
[1732718300612,2.0941,238.71,238.58,26.26827077]
[1732718300613,26.26827077,238.81,238.58,26.26827077]
[1732718301812,4.1435,238.83,238.62,26.26827077]
[1732718302016,4.1435,238.83,238.66,2.0944]
[1732718302209,4.1435,238.83,238.62,26.26827077]
[1732718302412,4.1435,238.83,238.64,16.17300741]
[1732718302612,2.0936,238.76,238.64,16.17300741]
[1732718302818,4.1435,238.83,238.64,16.17300741]
[1732718303014,2.0936,238.77,238.64,2.0946]
[1732718303217,16.17300741,238.81,238.6,16.17300741]
[1732718303717,2.0936,238.76,238.64,16.17300741]
[1732718303912,4.1435,238.83,238.64,16.17300741]
[1732718304116,2.0934,238.78,238.69,2.0942]
[1732718304317,4.1435,238.83,238.64,16.17300741]
[1732718304916,4.1435,238.83,238.68,16.17300741]
[1732718305319,4.1435,238.83,238.56,29.74242587]
[1732718305510,32.68,239.08,238.7,16.17300741]
[1732718305716,16.17300741,238.92,238.7,16.17300741]
[1732718305918,16.17300741,238.88,238.66,16.17300741]
[1732718306119,16.17300741,238.88,238.62,16.17300741]
[1732718306323,2.0937,238.75,238.66,2.0944]
[1732718306622,16.17300741,238.84,238.62,16.17300741]
[1732718306823,2.0935,238.78,238.66,2.0944]
[1732718307021,2.0356,238.77,238.66,2.0944]
[1732718307217,2.0356,238.77,238.62,16.17300741]
[1732718307423,2.1442,238.76,238.57,16.17300741]
[1732718307621,2.1442,238.76,238.59,2.095]
[1732718307918,16.17300741,238.74,238.31,32.68]
[1732718308117,2.095,238.6,238.53,2.0956]
[1732718308519,16.17300741,238.74,238.5,16.17300741]
[1732718308721,2.0949,238.61,238.5,16.17300741]
[1732718309220,16.17300741,238.74,238.5,16.17300741]
[1732718309626,2.0944,238.67,238.56,2.0953]
[1732718309923,16.17300741,238.74,238.54,16.17300741]
[1732718312019,2.1442,238.76,238.59,16.17300741]
[1732718312214,2.1442,238.76,238.61,2.0949]
[1732718312215,2.0944,238.67,238.61,2.0949]
[1732718312519,16.17300741,238.75,238.45,5.6422503]
[1732718312719,2.0943,238.69,238.55,2.0954]
[1732718312921,2.0943,238.69,238.52,16.17300741]
[1732718312922,16.17300741,238.71,238.52,16.17300741]
[1732718313316,2.0947,238.63,238.57,2.0952]
[1732718313513,16.17300741,238.71,238.52,16.17300741]
[1732718313719,16.17300741,238.71,238.48,16.17300741]
[1732718313915,16.17300741,238.71,238.49,5.03255965]
[1732718314126,16.17300741,238.71,238.48,16.17300741]
[1732718314422,16.17300741,238.71,238.49,5.03258776]
[1732718314623,16.17300741,238.71,238.48,16.17300741]
[1732718315018,2.1442,238.76,238.51,2.0957]
[1732718315019,2.0949,238.62,238.51,2.0957]
[1732718315323,16.17300741,238.67,238.51,2.0957]
[1732718315518,16.17300741,238.67,238.45,5.6422503]
[1732718315724,16.17300741,238.67,238.44,16.17300741]
[1732718316027,16.17300741,238.67,238.45,5.03438456]
[1732718316220,16.17300741,238.67,238.44,21.81525771]
[1732718316422,16.17300741,238.67,238.44,16.17300741]
[1732718316823,16.17300741,238.67,238.5,2.0958]
[1732718317225,16.17300741,238.67,238.44,16.17300741]
[1732718317429,2.1442,238.76,238.44,16.17300741]
[1732718317631,16.17300741,238.67,238.44,16.17300741]
[1732718317929,2.0953,238.57,238.44,16.17300741]
[1732718318130,2.0953,238.57,238.45,5.03109191]
[1732718318330,2.0954,238.55,238.49,2.0959]
[1732718318523,16.17300741,238.67,238.49,2.0959]
[1732718318932,16.17300741,238.67,238.44,16.17300741]
[1732718319132,2.0954,238.56,238.5,2.0958]
[1732718319335,16.17300741,238.67,238.44,16.17300741]
[1732718319633,16.17300741,238.63,238.44,16.17300741]
[1732718319933,16.17300741,238.63,238.49,2.0959]
[1732718320133,16.17300741,238.63,238.44,16.17300741]
[1732718320134,16.17300741,238.63,238.43,5.6422503]
[1732718320327,16.17300741,238.63,238.42,5.6422503]
[1732718320531,16.17300741,238.63,238.41,21.81525771]
[1732718320833,16.17300741,238.63,238.42,5.03120861]
[1732718321023,16.17300741,238.63,238.41,21.81525771]
[1732718321223,16.17300741,238.63,238.42,5.03170115]
[1732718321421,16.17300741,238.63,238.41,16.17300741]
[1732718321631,2.0957,238.53,238.46,2.0962]
[1732718321831,1.601,238.62,238.46,2.0962]
[1732718322329,1.601,238.62,238.42,1.6774985]
[1732718322529,1.601,238.62,238.44,2.0963]
[1732718322827,1.601,238.62,238.41,16.17300741]
[1732718323032,1.601,238.62,238.42,1.04852141]
[1732718323333,1.601,238.62,238.43,1.04852141]
[1732718323531,1.601,238.62,238.44,3.14492141]
[1732718323733,1.601,238.62,238.45,1.04861272]
[1732718324027,1.601,238.62,238.41,16.17300741]
[1732718324229,1.601,238.62,238.45,2.0963]
[1732718324532,16.17300741,238.59,238.46,1.04860697]
[1732718324733,3.2159,238.58,238.39,2.56110067]
[1732718324928,3.2159,238.58,238.44,2.0964]
[1732718325133,3.2159,238.58,238.45,1.04865099]
[1732718325328,3.2159,238.58,238.44,2.0964]
[1732718325528,3.2159,238.58,238.45,1.0486302]
[1732718325734,3.2159,238.58,238.44,2.0964]